bitfinex/quotes_BTCUSD_20220405
["timestamp","ask_amount","ask_price","bid_price","bid_amount"]
[1649157590011,0.1606339,46693.0,46690.0,0.388567]
[1649157590410,0.1606339,46693.0,46690.0,0.38]
[1649157591214,0.2106339,46693.0,46690.0,0.38]
[1649157592795,0.10354536,46693.0,46690.0,0.38]
[1649157592893,0.05354536,46693.0,46690.0,0.38]
[1649157592994,0.05,46692.0,46690.0,0.38]
[1649157593094,0.34899061,46697.0,46690.0,0.388567]
[1649157593195,0.320557,46696.0,46690.0,0.388567]
[1649157593395,0.320557,46696.0,46690.0,0.38]
[1649157593595,0.320557,46696.0,46693.0,0.28086986]
[1649157593695,0.320557,46696.0,46690.0,0.38]
[1649157593795,0.4025253,46697.0,46690.0,0.38]
[1649157594498,0.4025253,46697.0,46691.0,0.00052552]
[1649157594605,0.62025455,46696.0,46691.0,0.00052552]
[1649157594802,0.320557,46696.0,46691.0,0.00052552]
[1649157594997,0.27520683,46695.0,46691.0,0.00052552]
[1649157595097,0.320557,46694.0,46691.0,0.00052552]
[1649157595439,0.320557,46694.0,46690.0,0.38]
[1649157595638,0.320557,46694.0,46690.0,0.38052553]
[1649157596440,0.320557,46694.0,46690.0,0.55625096]
[1649157596643,0.320557,46694.0,46690.0,0.55572543]
[1649157596747,0.29984454,46693.0,46690.0,0.55572543]
[1649157596842,0.320557,46692.0,46690.0,0.55625096]
[1649157596941,0.320557,46692.0,46690.0,0.56481896]
[1649157596942,0.370557,46692.0,46690.0,0.56481896]
[1649157597292,0.370557,46692.0,46690.0,0.55625096]
[1649157597891,0.370557,46692.0,46690.0,0.55572543]
[1649157599591,0.370557,46692.0,46691.0,0.17572543]
[1649157599796,0.67043993,46692.0,46691.0,0.17572543]
[1649157600241,0.67043993,46692.0,46690.0,0.55572543]
[1649157600845,0.67043993,46692.0,46690.0,0.56429343]
[1649157601147,0.67043993,46692.0,46690.0,0.55572543]
[1649157601746,0.29985538,46691.0,46690.0,0.55572543]
[1649157601845,0.62041238,46691.0,46690.0,0.55572543]
[1649157602699,0.29985538,46691.0,46690.0,0.55572543]
[1649157602795,0.62041238,46691.0,46690.0,0.55572543]
[1649157603616,0.62041238,46691.0,46690.0,0.38]
[1649157603716,0.29985538,46691.0,46690.0,0.38]
[1649157603917,0.62041238,46691.0,46690.0,0.38]
[1649157611901,0.62041238,46691.0,46690.0,0.378796]
[1649157615664,0.62041238,46691.0,46690.0,0.06576904]
[1649157616212,0.320557,46690.0,46688.0,0.17574447]
[1649157616316,0.44211045,46689.0,46686.0,0.21968058]
[1649157616417,0.81621692,46689.0,46688.0,0.17576752]
[1649157616514,0.49565992,46689.0,46688.0,0.17576752]
[1649157616864,0.49565992,46689.0,46686.0,0.21968058]
[1649157617012,0.18022403,46689.0,46686.0,0.24973715]
[1649157617416,0.18022403,46689.0,46686.0,0.21968058]
[1649157617616,0.18022403,46689.0,46687.0,0.21968058]
[1649157617950,0.18022403,46689.0,46686.0,0.21968058]
[1649157618251,0.18022403,46689.0,46687.0,0.21968058]
[1649157618552,0.18022403,46689.0,46688.0,0.21968058]
[1649157618651,0.18022403,46689.0,46687.0,0.21968058]
[1649157620855,0.18022403,46689.0,46688.0,0.21968058]
[1649157621306,0.18022403,46689.0,46687.0,0.21968058]
[1649157622865,0.18022403,46689.0,46688.0,0.21968058]
[1649157625013,0.18374403,46689.0,46688.0,0.21968058]
[1649157626661,0.18374403,46689.0,46688.0,0.54578585]
[1649157627511,0.18374403,46689.0,46688.0,0.32610527]
[1649157627611,0.18374403,46689.0,46687.0,0.32610527]
[1649157627862,0.18374403,46689.0,46688.0,0.21962414]
[1649157628864,0.18374403,46689.0,46688.0,0.54572941]
[1649157631311,0.50430103,46689.0,46688.0,0.32610527]
[1649157631809,0.50430103,46689.0,46688.0,0.17566775]
[1649157632116,0.18374403,46689.0,46688.0,0.17566775]
[1649157632511,0.50430103,46689.0,46688.0,0.17566775]
[1649157632616,0.18374403,46689.0,46688.0,0.17566775]
[1649157632814,0.50430103,46689.0,46687.0,0.008568]
[1649157632975,0.18374403,46689.0,46686.0,0.22014939]
[1649157633077,0.24009268,46688.0,46686.0,0.22014939]
[1649157633172,0.29009268,46688.0,46687.0,0.00130622]
[1649157633676,0.61064968,46688.0,46687.0,0.00130622]
[1649157633881,0.61064968,46688.0,46685.0,0.21962414]
[1649157633977,0.374107,46687.0,46685.0,0.21962414]
[1649157634077,0.37019575,46687.0,46685.0,0.22014929]
[1649157634177,0.320557,46686.0,46685.0,0.22014929]
[1649157634276,0.37019575,46687.0,46685.0,0.22014929]
[1649157634727,0.370557,46686.0,46685.0,0.22014929]
[1649157634830,0.05,46686.0,46685.0,0.22014929]
[1649157635135,0.37019575,46687.0,46685.0,0.22014929]
[1649157635136,0.42019575,46687.0,46685.0,0.21962414]
[1649157635532,0.320557,46686.0,46685.0,0.21962414]
[1649157635641,0.320557,46686.0,46684.0,0.22819314]
[1649157635736,0.05355022,46686.0,46684.0,0.22819314]
[1649157635837,0.05355022,46686.0,46684.0,0.21962414]
[1649157636539,0.05355022,46686.0,46683.0,0.2201493]
[1649157637558,0.05355022,46686.0,46683.0,0.21962414]
[1649157638164,0.05355022,46686.0,46683.0,0.26962414]
[1649157638409,0.320557,46685.0,46683.0,0.26962414]
[1649157638510,0.42765745,46685.0,46683.0,0.26962414]
[1649157638612,0.47765745,46685.0,46683.0,0.21962414]
[1649157638713,0.73034882,46685.0,46683.0,0.21962414]
[1649157638814,0.25285775,46684.0,46683.0,0.21962414]
[1649157638916,0.57341475,46684.0,46683.0,0.21962414]
[1649157639016,0.320557,46683.0,46682.0,0.22014932]
[1649157639214,0.370557,46683.0,46682.0,0.22014932]
[1649157639866,0.370557,46683.0,46682.0,0.21962414]
[1649157640269,0.670557,46683.0,46682.0,0.21962414]
[1649157640371,0.670557,46683.0,46682.0,0.17573603]
[1649157640509,0.67045374,46683.0,46681.0,0.17573603]
[1649157640612,0.3,46682.0,46681.0,0.17573603]
[1649157640713,0.620557,46682.0,46681.0,0.17573603]
[1649157641058,0.620557,46682.0,46679.0,0.17573603]
[1649157641161,0.3741134,46681.0,46679.0,0.17573603]
[1649157641261,0.620557,46680.0,46679.0,0.17626123]
[1649157641460,0.72766979,46680.0,46679.0,0.17626123]
[1649157641562,0.72766979,46680.0,46679.0,0.0005252]
[1649157642163,0.77766979,46680.0,46679.0,0.0005252]
[1649157642265,0.77766979,46680.0,46678.0,0.17573603]
[1649157642266,1.05469199,46680.0,46678.0,0.17573603]
[1649157642362,0.620557,46679.0,46678.0,0.17573603]
[1649157642566,0.9509363,46679.0,46678.0,0.17573603]
[1649157642664,0.6509363,46679.0,46678.0,0.17573603]
[1649157642766,1.0045003,46679.0,46677.0,0.17626124]
[1649157642864,0.3,46678.0,46677.0,0.17626124]
[1649157642964,0.620557,46678.0,46677.0,0.17626124]
[1649157643216,0.320557,46678.0,46677.0,0.17626124]
[1649157643314,0.320557,46678.0,46677.0,0.00052521]
[1649157643514,0.320557,46677.0,46676.0,0.18430703]
[1649157643665,0.05,46677.0,46676.0,0.18430703]
[1649157643815,0.05355614,46678.0,46676.0,0.17573603]
[1649157644116,0.3839433,46679.0,46676.0,0.17573603]
[1649157644258,0.3839433,46679.0,46677.0,0.17573603]
[1649157644608,0.320557,46678.0,46677.0,0.17573603]
[1649157644710,0.3839433,46679.0,46677.0,0.17573603]
[1649157644808,0.320557,46678.0,46676.0,0.17573603]
[1649157644906,0.3839433,46679.0,46676.0,0.17626126]
[1649157645458,0.320557,46678.0,46677.0,0.17573603]
[1649157645560,0.103564,46679.0,46677.0,0.17573603]
[1649157645765,0.053564,46679.0,46677.0,0.17573603]
[1649157646311,0.02390347,46685.0,46677.0,0.17573603]
[1649157646411,0.320557,46684.0,46677.0,0.17573603]
[1649157646613,0.3,46683.0,46678.0,0.30064714]
[1649157646715,0.320557,46682.0,46678.0,0.30064714]
[1649157646812,0.3,46683.0,46677.0,0.17573603]
[1649157646912,0.320557,46681.0,46677.0,0.17573603]
[1649157647062,0.320557,46682.0,46676.0,0.17573603]
[1649157647164,0.320557,46681.0,46676.0,0.22573603]
[1649157647263,0.3,46683.0,46677.0,0.00052522]
[1649157647363,0.3,46683.0,46677.0,0.17626125]
[1649157647364,0.37411,46682.0,46677.0,0.17626125]
[1649157647569,0.37411,46682.0,46677.0,0.00052522]
[1649157647863,0.053553,46682.0,46677.0,0.39376193]
[1649157648401,0.053553,46682.0,46677.0,0.39323671]
[1649157648498,0.320557,46681.0,46677.0,0.39376193]
[1649157648600,0.053553,46682.0,46677.0,0.39376193]
[1649157648799,0.05,46681.0,46677.0,0.17626125]
[1649157649000,0.05,46681.0,46677.0,0.00052522]
[1649157649500,0.05,46681.0,46676.0,0.22573603]
[1649157649703,0.05,46681.0,46677.0,0.00052522]
[1649157649850,0.05,46681.0,46680.0,0.23968267]
[1649157650200,0.05,46681.0,46677.0,0.20632258]
[1649157650503,0.00352,46679.0,46678.0,0.17573603]
[1649157650655,0.00167298,46679.0,46678.0,0.17573603]
[1649157651601,0.00167298,46679.0,46678.0,0.17563947]
[1649157651814,0.00167298,46679.0,46677.0,0.03006133]
[1649157651914,0.00167298,46679.0,46676.0,0.05]
[1649157652113,0.00167298,46679.0,46676.0,0.05052522]
[1649157652214,0.320557,46678.0,46676.0,0.05052522]
[1649157652317,0.00167298,46679.0,46676.0,0.05052522]
[1649157652414,0.320557,46678.0,46676.0,0.05052522]
[1649157652614,0.00167298,46679.0,46676.0,0.05052522]
[1649157653065,0.00167298,46679.0,46676.0,0.05]
[1649157654017,0.320557,46678.0,46676.0,0.05]
[1649157654118,0.00167298,46679.0,46676.0,0.05]
[1649157654218,0.320557,46678.0,46676.0,0.05]
[1649157654320,0.00167298,46679.0,46676.0,0.05]
[1649157654519,0.320557,46678.0,46676.0,0.05]
[1649157654619,0.00167298,46679.0,46676.0,0.05]
[1649157654719,0.320557,46678.0,46676.0,0.05]
[1649157655320,0.00167298,46679.0,46676.0,0.05]
[1649157658408,0.320557,46678.0,46676.0,0.05]
[1649157658514,0.00167298,46679.0,46676.0,0.05]
[1649157658608,0.320557,46678.0,46676.0,0.05]
[1649157658710,0.00167298,46679.0,46676.0,0.05]
[1649157658811,0.320557,46678.0,46676.0,0.05]
[1649157658908,0.00167298,46679.0,46676.0,0.05]
[1649157659008,0.320557,46678.0,46676.0,0.05]
[1649157659109,0.00167298,46679.0,46676.0,0.05]
[1649157659354,0.320557,46678.0,46676.0,0.05]
[1649157659459,0.00167298,46679.0,46676.0,0.05]
[1649157659557,0.320557,46678.0,46676.0,0.05]
[1649157659654,0.00167298,46679.0,46676.0,0.05]
[1649157659756,0.320557,46678.0,46676.0,0.05]
[1649157659855,0.00167298,46679.0,46676.0,0.05]
[1649157659954,0.320557,46678.0,46676.0,0.05]
[1649157660055,0.00167298,46679.0,46676.0,0.05]
[1649157660356,0.320557,46678.0,46676.0,0.05]
[1649157660757,0.00167298,46679.0,46676.0,0.05]
[1649157660856,0.320557,46678.0,46676.0,0.05]
[1649157660963,0.3,46677.0,46676.0,0.05]
[1649157661061,0.00167298,46679.0,46676.0,0.05]
[1649157661158,0.320557,46678.0,46676.0,0.05]
[1649157661257,0.00167298,46679.0,46676.0,0.05]
[1649157661359,0.320557,46678.0,46676.0,0.05]
[1649157661460,0.00167298,46679.0,46676.0,0.05]
[1649157661461,0.3,46677.0,46676.0,0.05]
[1649157661559,0.00167298,46679.0,46676.0,0.05]
[1649157661666,0.320557,46678.0,46676.0,0.05]
[1649157661761,0.3,46677.0,46676.0,0.05]
[1649157661860,0.620557,46677.0,46676.0,0.05]
[1649157661959,0.320557,46677.0,46676.0,0.05]
[1649157662060,0.620557,46677.0,46676.0,0.05]
[1649157662874,0.320557,46677.0,46676.0,0.05]
[1649157663110,0.620557,46677.0,46676.0,0.05]
[1649157663665,0.3,46677.0,46676.0,0.05]
[1649157663760,0.620557,46677.0,46676.0,0.05]
[1649157663860,0.00167298,46679.0,46676.0,0.05]
[1649157663962,0.320557,46678.0,46676.0,0.05]
[1649157664063,0.3,46677.0,46676.0,0.05]
[1649157664164,0.620557,46677.0,46676.0,0.05]
[1649157664261,0.00167298,46679.0,46676.0,0.05]
[1649157664364,0.320557,46678.0,46676.0,0.05]
[1649157664461,0.27388749,46677.0,46676.0,0.05]
[1649157664562,0.59444449,46677.0,46676.0,0.05]
[1649157664665,0.320557,46677.0,46676.0,0.05]
[1649157665569,0.620557,46677.0,46676.0,0.05]
[1649157665673,0.670557,46677.0,46676.0,0.05]
[1649157665771,0.70163943,46677.0,46676.0,0.05]
[1649157665867,0.80163943,46677.0,46676.0,0.05]
[1649157665972,0.84443943,46677.0,46676.0,0.05]
[1649157667725,0.89801443,46677.0,46676.0,0.05]
[1649157668627,0.320557,46676.0,46666.0,0.35248515]
[1649157668732,0.320557,46668.0,46666.0,0.05]
[1649157668828,0.3,46668.0,46665.0,0.1864028]
[1649157668978,0.28886912,46669.0,46665.0,0.01071]
[1649157669377,0.28886912,46669.0,46665.0,0.1864028]
[1649157669479,0.0428,46670.0,46665.0,0.01071]
[1649157669579,0.0428,46670.0,46664.0,0.1766928]
[1649157669779,0.053569,46669.0,46668.0,0.23005209]
[1649157669879,0.374126,46669.0,46664.0,0.1766928]
[1649157669980,0.053569,46669.0,46664.0,0.1874028]
[1649157670079,0.053569,46669.0,46664.0,0.1766928]
[1649157670180,0.053569,46669.0,46665.0,0.00036866]
[1649157670914,0.053569,46669.0,46665.0,0.25667483]
[1649157671113,0.053569,46669.0,46665.0,0.25630617]
[1649157671216,0.053569,46669.0,46665.0,0.43199897]
[1649157671319,0.053569,46669.0,46665.0,0.43236763]
[1649157671417,0.0428,46670.0,46665.0,0.43236763]
[1649157671520,0.05356,46675.0,46665.0,0.43236763]
[1649157671521,0.1,46677.0,46666.0,0.320557]
[1649157671617,0.0428,46675.0,46667.0,0.1756928]
[1649157671818,0.05,46677.0,46667.0,0.1756928]
[1649157671965,0.05,46676.0,46667.0,0.1756928]
[1649157672065,0.05,46676.0,46666.0,0.3]
[1649157672066,0.2428,46680.0,46666.0,0.4756928]
[1649157672217,0.1428,46680.0,46667.0,0.1756928]
[1649157672316,0.0017,46679.0,46667.0,0.1756928]
[1649157672416,0.0017,46679.0,46667.0,0.4228984]
[1649157672514,0.0017,46679.0,46671.0,0.0005917]
[1649157672714,0.055256,46679.0,46671.0,0.0005917]
[1649157673519,0.055256,46679.0,46668.0,0.053558]
[1649157673720,0.320557,46678.0,46673.0,0.00059169]
[1649157673824,0.1,46678.0,46673.0,0.00059169]
[1649157673922,0.320557,46677.0,46673.0,0.00059169]
[1649157674022,0.15,46678.0,46673.0,0.00059169]
[1649157674260,0.320557,46677.0,46673.0,0.00059169]
[1649157674359,0.1,46677.0,46673.0,0.00059169]
[1649157674560,0.1,46677.0,46673.0,0.05414769]
[1649157674659,0.05,46676.0,46673.0,0.05414769]
[1649157674759,0.1,46677.0,46673.0,0.053556]
[1649157675059,0.1,46677.0,46673.0,0.05414769]
[1649157675260,0.05,46678.0,46673.0,0.05414769]
[1649157675362,0.053556,46679.0,46673.0,0.05414769]
[1649157675461,0.103556,46679.0,46673.0,0.05246769]
[1649157675616,1.14637222,46681.0,46673.0,0.05246769]
[1649157675911,0.90357558,46681.0,46673.0,0.05246769]
[1649157676013,0.90357558,46681.0,46673.0,0.051876]
[1649157676111,0.90357558,46681.0,46675.0,0.00059167]
[1649157676313,0.90357558,46681.0,46676.0,0.053546]
[1649157676418,0.75357558,46681.0,46676.0,0.353546]
[1649157676515,0.75357558,46681.0,46677.0,0.320557]
[1649157676617,0.75357558,46681.0,46678.0,0.320557]
[1649157676714,0.75357558,46681.0,46676.0,0.40709]
[1649157676715,0.28333996,46681.0,46676.0,0.40709]
[1649157676817,0.28333996,46681.0,46677.0,0.320557]
[1649157677416,0.28333996,46681.0,46677.0,0.32114865]
[1649157678160,0.28333996,46681.0,46677.0,0.49684145]
[1649157678257,0.28333996,46681.0,46677.0,0.32114865]
[1649157678359,0.28333996,46681.0,46677.0,0.320557]
[1649157678458,0.28333996,46681.0,46677.0,0.4962498]
[1649157678561,0.28333996,46681.0,46677.0,0.4968199]
[1649157678666,0.28333996,46681.0,46678.0,0.1756928]
[1649157678758,0.28333996,46681.0,46679.0,0.620557]
[1649157678859,0.28333996,46681.0,46680.0,0.620557]
[1649157678967,0.001702,46688.0,46681.0,0.6876733]
[1649157679062,0.12667456,46689.0,46683.0,0.05354]
[1649157679163,0.12667456,46689.0,46684.0,0.3]
[1649157679459,0.12667456,46689.0,46684.0,0.35]
[1649157679759,0.12667456,46689.0,46684.0,0.35057005]
[1649157679861,0.12667456,46689.0,46685.0,0.320557]
[1649157679961,0.12667456,46689.0,46686.0,0.22750569]
[1649157680060,0.12667456,46689.0,46686.0,0.28103469]
[1649157680562,0.12667456,46689.0,46686.0,0.053529]
[1649157682331,0.12667456,46689.0,46686.0,0.062097]
[1649157682632,0.12667456,46689.0,46686.0,0.053529]
[1649157683833,0.12667456,46689.0,46687.0,0.05]
[1649157684333,0.12667456,46689.0,46685.0,0.15760853]
[1649157684433,0.12667456,46689.0,46685.0,0.157057]
[1649157684684,0.12667456,46689.0,46686.0,0.00055152]
[1649157685611,0.12667456,46689.0,46685.0,0.157057]
[1649157685811,0.12667456,46689.0,46686.0,0.320557]
[1649157686212,0.12667456,46689.0,46685.0,0.15760978]
[1649157686618,0.12667456,46689.0,46688.0,0.26609551]
[1649157686714,0.12667456,46689.0,46688.0,0.88665251]
[1649157686814,0.12667456,46689.0,46688.0,0.93665251]
[1649157687168,0.12667456,46689.0,46688.0,0.62795645]
[1649157687767,0.12667456,46689.0,46688.0,0.370566]
[1649157689615,0.12667456,46689.0,46688.0,0.379133]
[1649157689915,0.12667456,46689.0,46688.0,0.370566]
[1649157692071,0.12667456,46689.0,46688.0,0.320566]
[1649157693176,0.12667456,46689.0,46688.0,0.370566]
[1649157693363,0.12667456,46689.0,46688.0,0.14038]
[1649157695218,0.12667456,46689.0,46688.0,0.27162079]
[1649157695418,0.12667456,46689.0,46688.0,0.05]
[1649157695518,0.12667456,46689.0,46687.0,0.053528]
[1649157695620,0.12667456,46689.0,46688.0,0.320566]
[1649157695870,0.12667456,46689.0,46688.0,0.370566]
[1649157696473,0.12667456,46689.0,46688.0,0.50180679]
[1649157696731,0.12667456,46689.0,46688.0,0.370566]
[1649157696834,0.12667456,46689.0,46688.0,0.6365356]
[1649157696923,0.12667456,46689.0,46688.0,0.63663091]
[1649157697626,0.12667456,46689.0,46688.0,0.64519691]
[1649157697926,0.12667456,46689.0,46688.0,0.63663091]
[1649157698426,0.12667456,46689.0,46688.0,0.38139857]
[1649157701121,0.12667456,46689.0,46688.0,0.33139857]
[1649157702121,0.12667456,46689.0,46688.0,0.38139857]
[1649157702925,0.12167456,46689.0,46688.0,0.38139857]
[1649157705471,0.12167456,46689.0,46688.0,0.38996457]
[1649157705872,0.12167456,46689.0,46688.0,0.38139857]
[1649157707826,0.12167456,46689.0,46688.0,0.70705047]
[1649157708566,0.12167456,46689.0,46688.0,0.96237943]
[1649157709367,0.12167456,46689.0,46688.0,0.97094543]
[1649157709570,0.12167456,46689.0,46688.0,0.96237943]
[1649157710925,0.12167456,46689.0,46688.0,0.70705047]
[1649157713520,0.12167456,46689.0,46688.0,2.12573109]
[1649157714922,0.10770309,46689.0,46688.0,2.12573109]
[1649157715020,0.11122309,46689.0,46688.0,2.12573109]
[1649157717125,0.11122309,46689.0,46688.0,2.13429709]
[1649157717328,0.11122309,46689.0,46688.0,2.30970655]
[1649157717429,0.11122309,46689.0,46688.0,2.13429709]
[1649157717529,0.11122309,46689.0,46688.0,2.18781909]
[1649157718232,0.11122309,46689.0,46688.0,2.23061909]
[1649157718431,0.11122309,46689.0,46688.0,2.45024323]
[1649157718831,0.11122309,46689.0,46688.0,2.44167723]
[1649157718981,0.11122309,46689.0,46688.0,2.22205309]
[1649157719713,0.11122309,46689.0,46688.0,2.32908933]
[1649157720113,0.11122309,46689.0,46688.0,2.59270603]
[1649157720311,0.11122309,46689.0,46688.0,2.32908933]
[1649157720515,0.11122309,46689.0,46688.0,2.59270603]
[1649157721021,0.11122309,46689.0,46688.0,2.60127103]
[1649157722373,0.11122309,46689.0,46688.0,2.59270603]
[1649157722468,0.11122309,46689.0,46688.0,2.32908933]
[1649157722569,0.11122309,46689.0,46688.0,2.59228497]
[1649157722670,0.11122309,46689.0,46688.0,2.32908933]
[1649157723169,0.11122309,46689.0,46688.0,2.59228893]
[1649157723269,0.11122309,46689.0,46688.0,2.59228885]
[1649157723369,0.11122309,46689.0,46688.0,2.32908933]
[1649157724879,0.11122309,46689.0,46688.0,2.33765533]
[1649157725175,0.11122309,46689.0,46688.0,2.32908933]
[1649157726817,0.11122309,46689.0,46688.0,2.22205309]
[1649157728319,0.11122309,46689.0,46688.0,2.78905094]
[1649157729670,0.11122309,46689.0,46688.0,2.48149812]
[1649157729772,0.11122309,46689.0,46688.0,2.7885482]
[1649157732725,0.11122309,46689.0,46688.0,2.7971142]
[1649157733025,0.11122309,46689.0,46688.0,2.48149812]
[1649157733473,0.11122309,46689.0,46688.0,2.78847678]
[1649157733675,0.11122309,46689.0,46688.0,2.49220812]
[1649157733776,0.10622309,46689.0,46688.0,2.79917341]
[1649157733978,0.10622309,46689.0,46688.0,2.49220812]
[1649157734319,0.10622309,46689.0,46688.0,2.79917517]
[1649157734921,0.10622309,46689.0,46688.0,2.49220812]
[1649157736023,0.10622309,46689.0,46688.0,2.79919345]
[1649157736622,0.10622309,46689.0,46688.0,2.80775945]
[1649157736723,0.10622309,46689.0,46688.0,2.75423745]
[1649157736823,0.10622309,46689.0,46688.0,2.74352745]
[1649157736924,0.10622309,46689.0,46688.0,2.73496145]
[1649157737634,0.10622309,46689.0,46688.0,2.12573109]
[1649157737729,0.10608043,46689.0,46688.0,2.12573109]
[1649157737825,0.10608043,46689.0,46688.0,0.70705047]
[1649157737981,0.10608043,46689.0,46688.0,0.6962179]
[1649157738181,0.10608043,46689.0,46688.0,0.95941393]
[1649157738278,0.10608043,46689.0,46688.0,0.6962179]
[1649157738585,0.10608043,46689.0,46688.0,0.4660319]
[1649157738681,0.10608043,46689.0,46688.0,0.3756519]
[1649157739179,0.10608043,46689.0,46688.0,0.05]
[1649157739284,0.40608043,46689.0,46688.0,0.05]
[1649157739379,0.40608043,46689.0,46688.0,0.26937829]
[1649157739479,0.40608043,46689.0,46688.0,0.58994429]
[1649157739679,0.40608043,46689.0,46688.0,0.26937829]
[1649157739882,0.40608043,46689.0,46688.0,0.58994429]
[1649157739983,0.40608043,46689.0,46688.0,0.26937829]
[1649157740281,0.40256043,46689.0,46688.0,0.26937829]
[1649157740386,0.40256043,46689.0,46688.0,0.21937829]
[1649157740486,0.40256043,46689.0,46687.0,0.21937829]
[1649157740586,0.40256043,46689.0,46688.0,0.17554702]
[1649157740587,0.46592643,46689.0,46688.0,0.17554702]
[1649157740738,0.320566,46688.0,46686.0,0.00033087]
[1649157740832,0.3,46687.0,46686.0,0.00033087]
[1649157740935,0.716286,46687.0,46686.0,0.00033087]
[1649157741031,0.74632817,46687.0,46684.0,0.17554702]
[1649157741231,0.74632817,46687.0,46685.0,0.00034624]
[1649157741341,0.29161898,46686.0,46685.0,0.00034624]
[1649157741431,0.91218498,46686.0,46685.0,0.00034624]
[1649157742174,0.91218498,46686.0,46683.0,0.17554702]
[1649157742278,0.320566,46685.0,46683.0,0.17554702]
[1649157742376,0.59161898,46686.0,46683.0,0.17554702]
[1649157742478,0.59161898,46686.0,46683.0,0.17611601]
[1649157742678,0.59161898,46686.0,46683.0,0.00056899]
[1649157742879,0.320566,46685.0,46683.0,0.00056899]
[1649157742978,0.620566,46684.0,46683.0,0.00056899]
[1649157743179,0.3,46684.0,46683.0,0.00056899]
[1649157743428,0.3,46684.0,46682.0,0.17554702]
[1649157744880,0.3,46684.0,46681.0,0.27234067]
[1649157745922,0.3,46684.0,46681.0,0.26322032]
[1649157746020,0.053552,46683.0,46681.0,0.26322032]
[1649157746122,0.053552,46683.0,46681.0,0.0876733]
[1649157746321,0.053552,46683.0,46681.0,0.26322032]
[1649157747622,0.053552,46683.0,46681.0,0.0876733]
[1649157747826,0.053552,46683.0,46681.0,0.26322032]
[1649157748423,0.053552,46683.0,46681.0,0.0876733]
[1649157748623,0.053552,46683.0,46681.0,0.26322032]
[1649157748723,0.053552,46683.0,46681.0,0.0876733]
[1649157749583,0.053552,46683.0,46681.0,0.26322032]
[1649157750083,0.053552,46683.0,46681.0,0.0876733]
[1649157759034,0.05,46684.0,46683.0,0.01529408]
[1649157759636,0.35,46684.0,46683.0,0.01529408]
[1649157759937,0.670566,46684.0,46683.0,0.01529408]
[1649157761769,0.77768364,46684.0,46683.0,0.01529408]
[1649157767074,0.670566,46684.0,46683.0,0.01529408]
[1649157767276,0.35,46684.0,46683.0,0.01529408]
[1649157767375,0.670566,46684.0,46683.0,0.01529408]
[1649157767477,0.35,46684.0,46683.0,0.01529408]
[1649157767577,0.670566,46684.0,46683.0,0.01529408]
[1649157767678,0.35,46684.0,46683.0,0.01529408]
[1649157767878,0.670566,46684.0,46683.0,0.01529408]
[1649157768022,0.35,46684.0,46683.0,0.01529408]
[1649157768122,0.670566,46684.0,46683.0,0.01529408]
[1649157769774,0.674086,46684.0,46683.0,0.01529408]
[1649157769875,0.35352,46684.0,46683.0,0.01529408]
[1649157770074,0.674086,46684.0,46683.0,0.01529408]
[1649157770173,1.174086,46684.0,46683.0,0.01529408]
[1649157772517,0.55352,46684.0,46683.0,0.01529408]
[1649157774920,0.874086,46684.0,46683.0,0.01529408]
[1649157775020,0.55352,46684.0,46683.0,0.01529408]
[1649157775566,0.874086,46684.0,46683.0,0.01529408]
[1649157775666,0.55352,46684.0,46683.0,0.01529408]
[1649157776022,0.874086,46684.0,46683.0,0.01529408]
[1649157776220,1.174086,46684.0,46683.0,0.01529408]
[1649157776723,0.85352,46684.0,46683.0,0.01529408]
[1649157777223,1.174086,46684.0,46683.0,0.01529408]
[1649157777321,0.85352,46684.0,46683.0,0.01529408]
[1649157777525,1.174086,46684.0,46683.0,0.01529408]
[1649157777623,0.85352,46684.0,46683.0,0.01529408]
[1649157777872,1.174086,46684.0,46683.0,0.01529408]
[1649157779469,0.55352,46684.0,46683.0,0.01529408]
[1649157780071,0.874086,46684.0,46683.0,0.01529408]
[1649157780273,0.55352,46684.0,46683.0,0.01529408]
[1649157780722,0.874086,46684.0,46683.0,0.01529408]
[1649157781022,1.174086,46684.0,46683.0,0.01529408]
[1649157782776,0.874086,46684.0,46683.0,0.01529408]
[1649157783796,0.870566,46684.0,46683.0,0.01529408]
[1649157788680,0.55,46684.0,46683.0,0.01529408]
[1649157788980,0.55,46684.0,46683.0,0.19084166]
[1649157789079,0.55,46684.0,46683.0,0.01529408]
[1649157789279,0.54993978,46684.0,46683.0,0.01529408]
[1649157791722,0.55345978,46684.0,46683.0,0.01529408]
[1649157792126,0.50352,46684.0,46683.0,0.01529408]
[1649157796876,0.03337628,46684.0,46683.0,0.01529408]
[1649157797983,0.03337628,46684.0,46683.0,0.23495435]
[1649157798675,0.03337628,46684.0,46683.0,0.01529408]
[1649157799378,0.03337628,46684.0,46683.0,0.01522516]
[1649157800828,0.03337628,46684.0,46683.0,0.23488543]
[1649157801180,0.03337628,46684.0,46683.0,0.01522516]
[1649157801488,0.03337628,46684.0,46683.0,0.19097972]
[1649157801585,0.03337628,46684.0,46683.0,0.01522516]
[1649157801723,0.03337628,46684.0,46683.0,0.19104496]
[1649157801825,0.03337628,46684.0,46683.0,0.01522516]
[1649157802631,0.35394228,46684.0,46683.0,0.01522516]
[1649157802727,0.03337628,46684.0,46683.0,0.19106227]
[1649157803478,0.03337628,46684.0,46683.0,0.01522516]
[1649157805495,0.02985628,46684.0,46683.0,0.01522516]
[1649157806448,0.02985628,46684.0,46683.0,0.23488543]
[1649157806548,0.02985628,46684.0,46683.0,0.01522516]
[1649157807951,0.02985628,46684.0,46683.0,0.23488543]
[1649157808103,0.02985628,46684.0,46683.0,0.01522516]
[1649157808250,0.02985628,46684.0,46683.0,0.23488543]
[1649157811124,0.02985628,46684.0,46683.0,0.50608087]
[1649157811323,0.02985628,46684.0,46683.0,0.23488543]
[1649157813168,0.35042228,46684.0,46683.0,0.23488543]
[1649157813669,0.35042228,46684.0,46683.0,0.01522516]
[1649157814218,0.02985628,46684.0,46683.0,0.01522516]
[1649157815170,0.35042228,46684.0,46683.0,0.01522516]
[1649157815519,0.35394228,46684.0,46683.0,0.01522516]
[1649157819050,0.03337628,46684.0,46683.0,0.01522516]
[1649157819149,0.35394228,46684.0,46683.0,0.01522516]
[1649157819455,0.03337628,46684.0,46683.0,0.01522516]
[1649157819752,0.03337628,46684.0,46683.0,0.23488543]
[1649157819952,0.03337628,46684.0,46683.0,0.01522516]
[1649157820693,0.03337628,46684.0,46683.0,0.23488543]